[Event "Titled Tuesday Blitz June 21 Early 2022"]
[White "Tologon tegin, Semetei"]
[Black "Mrudul Dehankar"]
[WhiteFideId "13800574"]
[BlackFideId "25096990"]
[WhiteElo "2174"]
[BlackElo "1766"]
[Result "1-0"]
[Round "03"]
[TimeControl "180+1"]
[Date "2022.06.22"]
[WhiteClock "0:00:41"]
[BlackClock "0:00:01"]

1. e4 {[%clk 0:03:00]}  c5 {[%clk 0:02:30]} 2. Nc3 {[%clk 0:02:54]}  Nc6 {[%clk 0:02:29]} 3. Bb5 {[%clk 0:02:52]}  Nd4 {[%clk 0:02:28]} 4. Nf3 {[%clk 0:02:52]}  g6 {[%clk 0:02:27]} 5. Nxd4 {[%clk 0:02:49]}  cxd4 {[%clk 0:02:27]} 6. Ne2 {[%clk 0:02:49]}  Bg7 {[%clk 0:02:27]} 7. O-O {[%clk 0:02:49]}  Qb6 {[%clk 0:02:06]} 8. Bc4 {[%clk 0:02:46]}  Nf6 {[%clk 0:02:03]} 9. d3 {[%clk 0:02:42]}  O-O {[%clk 0:02:01]} 10. Kh1 {[%clk 0:02:38]}  d6 {[%clk 0:01:58]} 11. h3 {[%clk 0:02:35]}  Nd7 {[%clk 0:01:50]} 12. f4 {[%clk 0:02:34]}  Nc5 {[%clk 0:01:46]} 13. a4 {[%clk 0:02:26]}  Qc7 {[%clk 0:01:43]} 14. b4 {[%clk 0:02:22]}  Nxe4 {[%clk 0:01:37]} 15. Bb2 {[%clk 0:02:18]}  Nc3 {[%clk 0:01:18]} 16. Bxc3 {[%clk 0:02:15]}  dxc3 {[%clk 0:01:13]} 17. Qe1 {[%clk 0:02:13]}  Rd8 {[%clk 0:00:26]} 18. Ra3 {[%clk 0:02:02]}  d5 {[%clk 0:00:25]} 19. Ba2 {[%clk 0:02:01]}  d4 {[%clk 0:00:17]} 20. Bc4 {[%clk 0:01:52]}  Qd6 {[%clk 0:00:15]} 21. Rb3 {[%clk 0:01:51]}  Bd7 {[%clk 0:00:14]} 22. b5 {[%clk 0:01:48]}  e6 {[%clk 0:00:14]} 23. Ng3 {[%clk 0:01:44]}  Rac8 {[%clk 0:00:12]} 24. Ne4 {[%clk 0:01:42]}  Qe7 {[%clk 0:00:13]} 25. Rb1 {[%clk 0:01:22]}  Rc7 {[%clk 0:00:12]} 26. Ng3 {[%clk 0:01:17]}  Qd6 {[%clk 0:00:08]} 27. Ne4 {[%clk 0:01:14]}  Qa3 {[%clk 0:00:08]} 28. Ra1 {[%clk 0:01:11]}  Qe7 {[%clk 0:00:08]} 29. Ng3 {[%clk 0:01:03]}  Qh4 {[%clk 0:00:05]} 30. Kh2 {[%clk 0:00:53]}  Rcc8 {[%clk 0:00:03]} 31. Qe2 {[%clk 0:00:53]}  Rc7 {[%clk 0:00:02]} 32. Ne4 {[%clk 0:00:50]}  Bc8 {[%clk 0:00:02]} 33. g3 {[%clk 0:00:46]}  Qe7 {[%clk 0:00:01]} 34. Ng5 {[%clk 0:00:41]} 1-0


[Site "https://www.chess.com"]

[Event "Titled Tuesday Blitz June 21 Early 2022"]
[White "Trakru, Rohun"]
[Black "De Souza, Cristiano Gomes"]
[WhiteFideId "2097613"]
[BlackFideId "2151758"]
[WhiteElo "1746"]
[BlackElo "2068"]
[Result "1-0"]
[Round "03"]
[TimeControl "180+1"]
[Date "2022.06.22"]
[WhiteClock "0:00:54"]
[BlackClock "0:00:37"]

1. Nf3 {[%clk 0:02:59]}  Nf6 {[%clk 0:02:58]} 2. c4 {[%clk 0:02:57]}  g6 {[%clk 0:02:59]} 3. d4 {[%clk 0:02:57]}  Bg7 {[%clk 0:02:59]} 4. Nc3 {[%clk 0:02:58]}  d6 {[%clk 0:02:59]} 5. e4 {[%clk 0:02:58]}  O-O {[%clk 0:02:59]} 6. h3 {[%clk 0:02:57]}  e5 {[%clk 0:02:59]} 7. d5 {[%clk 0:02:54]}  Na6 {[%clk 0:02:53]} 8. Be2 {[%clk 0:02:54]}  Nc5 {[%clk 0:02:51]} 9. Qc2 {[%clk 0:02:54]}  a5 {[%clk 0:02:49]} 10. Be3 {[%clk 0:02:54]}  Nfd7 {[%clk 0:02:47]} 11. g4 {[%clk 0:02:54]}  f5 {[%clk 0:02:41]} 12. gxf5 {[%clk 0:02:53]}  gxf5 {[%clk 0:02:42]} 13. exf5 {[%clk 0:02:51]}  Nb6 {[%clk 0:02:42]} 14. Rg1 {[%clk 0:02:45]}  Bxf5 {[%clk 0:02:39]} 15. Qd2 {[%clk 0:02:40]}  Rf7 {[%clk 0:02:31]} 16. Ng5 {[%clk 0:02:26]}  Rd7 {[%clk 0:02:24]} 17. O-O-O {[%clk 0:02:19]}  a4 {[%clk 0:02:06]} 18. Bxc5 {[%clk 0:02:11]}  dxc5 {[%clk 0:02:06]} 19. Nge4 {[%clk 0:02:11]}  Qf8 {[%clk 0:01:53]} 20. Qd3 {[%clk 0:01:56]}  Re8 {[%clk 0:01:44]} 21. Bg4 {[%clk 0:01:56]}  Bxg4 {[%clk 0:01:26]} 22. hxg4 {[%clk 0:01:42]}  Rf7 {[%clk 0:01:23]} 23. Kb1 {[%clk 0:01:33]}  h6 {[%clk 0:01:12]} 24. g5 {[%clk 0:01:30]}  hxg5 {[%clk 0:01:11]} 25. Nxg5 {[%clk 0:01:29]}  Rf5 {[%clk 0:01:11]} 26. Ne6 {[%clk 0:01:28]}  Rxe6 {[%clk 0:01:03]} 27. dxe6 {[%clk 0:01:29]}  Rxf2 {[%clk 0:00:55]} 28. Ne4 {[%clk 0:01:28]}  Rf4 {[%clk 0:00:52]} 29. Qd8 {[%clk 0:01:21]}  Nc8 {[%clk 0:00:39]} 30. Qxf8+ {[%clk 0:00:58]}  Rxf8 {[%clk 0:00:37]} 31. Rd7 {[%clk 0:00:54]} 1-0


[Site "https://www.chess.com"]

[Event "Titled Tuesday Blitz June 21 Early 2022"]
[White "Volkov, Maksim"]
[Black "Sadykov, Ramil"]
[WhiteFideId "54123070"]
[BlackFideId "24113590"]
[WhiteElo "2155"]
[BlackElo "2226"]
[Result "1-0"]
[Round "03"]
[TimeControl "180+1"]
[Date "2022.06.22"]
[WhiteClock "0:00:13"]
[BlackClock "0:00:01"]

1. d4 {[%clk 0:03:00]}  Nf6 {[%clk 0:02:57]} 2. c4 {[%clk 0:03:00]}  g6 {[%clk 0:02:56]} 3. g3 {[%clk 0:03:00]}  Bg7 {[%clk 0:02:55]} 4. Bg2 {[%clk 0:03:00]}  d5 {[%clk 0:02:56]} 5. cxd5 {[%clk 0:03:00]}  Nxd5 {[%clk 0:02:57]} 6. e4 {[%clk 0:03:00]}  Nb6 {[%clk 0:02:57]} 7. Ne2 {[%clk 0:03:01]}  O-O {[%clk 0:02:56]} 8. O-O {[%clk 0:03:01]}  e5 {[%clk 0:02:41]} 9. dxe5 {[%clk 0:02:31]}  Bxe5 {[%clk 0:02:42]} 10. Nbc3 {[%clk 0:02:29]}  Be6 {[%clk 0:02:38]} 11. f4 {[%clk 0:02:27]}  Bg7 {[%clk 0:02:36]} 12. Qxd8 {[%clk 0:02:17]}  Rxd8 {[%clk 0:02:36]} 13. f5 {[%clk 0:02:16]}  Bc4 {[%clk 0:02:06]} 14. f6 {[%clk 0:02:14]}  Bf8 {[%clk 0:02:07]} 15. Bf4 {[%clk 0:02:13]}  Bc5+ {[%clk 0:01:54]} 16. Kh1 {[%clk 0:02:12]}  Na6 {[%clk 0:01:45]} 17. Rfd1 {[%clk 0:02:09]}  c6 {[%clk 0:01:36]} 18. b3 {[%clk 0:01:45]}  Be6 {[%clk 0:01:31]} 19. h3 {[%clk 0:01:28]}  Nb4 {[%clk 0:01:26]} 20. Bc7 {[%clk 0:01:28]}  Rdc8 {[%clk 0:01:03]} 21. Bd6 {[%clk 0:01:27]}  Bxd6 {[%clk 0:00:54]} 22. Rxd6 {[%clk 0:01:28]}  Nc2 {[%clk 0:00:32]} 23. Rad1 {[%clk 0:01:25]}  Ne3 {[%clk 0:00:30]} 24. R1d2 {[%clk 0:01:20]}  Nxg2 {[%clk 0:00:28]} 25. Kxg2 {[%clk 0:01:21]}  g5 {[%clk 0:00:20]} 26. g4 {[%clk 0:01:12]}  Re8 {[%clk 0:00:17]} 27. Kf3 {[%clk 0:01:09]}  h6 {[%clk 0:00:15]} 28. Ng3 {[%clk 0:01:09]}  Kh7 {[%clk 0:00:13]} 29. Nh5 {[%clk 0:01:01]}  Kg6 {[%clk 0:00:10]} 30. Ne2 {[%clk 0:01:00]}  Nc8 {[%clk 0:00:08]} 31. R6d3 {[%clk 0:00:53]}  c5 {[%clk 0:00:06]} 32. Neg3 {[%clk 0:00:38]}  c4 {[%clk 0:00:05]} 33. bxc4 {[%clk 0:00:24]}  Bxc4 {[%clk 0:00:06]} 34. Rd4 {[%clk 0:00:23]}  b5 {[%clk 0:00:05]} 35. Nf5 {[%clk 0:00:23]}  Nb6 {[%clk 0:00:05]} 36. Ne7+ {[%clk 0:00:20]}  Kh7 {[%clk 0:00:05]} 37. Ng7 {[%clk 0:00:19]}  Rf8 {[%clk 0:00:03]} 38. Rd6 {[%clk 0:00:16]}  Na4 {[%clk 0:00:02]} 39. a3 {[%clk 0:00:14]}  a5 {[%clk 0:00:01]} 40. Rc6 {[%clk 0:00:13]} 1-0


[Site "https://www.chess.com"]

[Event "Titled Tuesday Blitz June 21 Early 2022"]
[White "Vovk, Orest"]
[Black "Li, Zhuoling"]
[WhiteFideId "14113490"]
[BlackFideId "8605629"]
[WhiteElo "2203"]
[BlackElo "2300"]
[Result "0-1"]
[Round "03"]
[TimeControl "180+1"]
[Date "2022.06.22"]
[WhiteClock "0:00:47"]
[BlackClock "0:01:14"]

1. h4 {[%clk 0:02:55]}  d5 {[%clk 0:02:57]} 2. h5 {[%clk 0:02:56]}  h6 {[%clk 0:02:57]} 3. e4 {[%clk 0:02:53]}  dxe4 {[%clk 0:02:56]} 4. Nc3 {[%clk 0:02:53]}  Nf6 {[%clk 0:02:55]} 5. Rh4 {[%clk 0:02:53]}  Bf5 {[%clk 0:02:50]} 6. Qe2 {[%clk 0:01:56]}  Nc6 {[%clk 0:02:43]} 7. g3 {[%clk 0:01:52]}  e6 {[%clk 0:02:42]} 8. Bh3 {[%clk 0:01:26]}  Nd4 {[%clk 0:02:35]} 9. Qd1 {[%clk 0:01:26]}  e3 {[%clk 0:02:32]} 10. dxe3 {[%clk 0:01:22]}  Nxc2+ {[%clk 0:02:30]} 11. Kf1 {[%clk 0:01:22]}  Qxd1+ {[%clk 0:02:24]} 12. Nxd1 {[%clk 0:01:21]}  Bd3+ {[%clk 0:02:22]} 13. Kg2 {[%clk 0:01:20]}  Nxa1 {[%clk 0:02:22]} 14. Nf3 {[%clk 0:01:19]}  Rd8 {[%clk 0:02:16]} 15. Nc3 {[%clk 0:01:19]}  Be7 {[%clk 0:02:14]} 16. Ne5 {[%clk 0:01:19]}  Nd5 {[%clk 0:02:09]} 17. Rd4 {[%clk 0:01:04]}  Nxc3 {[%clk 0:02:08]} 18. Rxd8+ {[%clk 0:01:03]}  Bxd8 {[%clk 0:02:07]} 19. bxc3 {[%clk 0:01:03]}  Bf6 {[%clk 0:02:05]} 20. Nxd3 {[%clk 0:00:58]}  Bxc3 {[%clk 0:02:01]} 21. Ba3 {[%clk 0:00:57]}  Nc2 {[%clk 0:01:55]} 22. Bc1 {[%clk 0:00:56]}  O-O {[%clk 0:01:52]} 23. Kf1 {[%clk 0:00:55]}  Nb4 {[%clk 0:01:50]} 24. Nxb4 {[%clk 0:00:53]}  Bxb4 {[%clk 0:01:49]} 25. Bg2 {[%clk 0:00:54]}  c6 {[%clk 0:01:49]} 26. Ke2 {[%clk 0:00:54]}  Rd8 {[%clk 0:01:48]} 27. Be4 {[%clk 0:00:53]}  f5 {[%clk 0:01:46]} 28. Bc2 {[%clk 0:00:52]}  Kf7 {[%clk 0:01:46]} 29. f4 {[%clk 0:00:52]}  Bc3 {[%clk 0:01:38]} 30. e4 {[%clk 0:00:50]}  fxe4 {[%clk 0:01:34]} 31. Bxe4 {[%clk 0:00:51]}  e5 {[%clk 0:01:33]} 32. f5 {[%clk 0:00:50]}  a5 {[%clk 0:01:25]} 33. g4 {[%clk 0:00:50]}  Rd4 {[%clk 0:01:18]} 34. Kf3 {[%clk 0:00:47]}  Rd1 {[%clk 0:01:16]} 35. Be3 {[%clk 0:00:47]}  Bd4 {[%clk 0:01:14]} 0-1


[Site "https://www.chess.com"]

[Event "Titled Tuesday Blitz June 21 Early 2022"]
[White "Wachinger, Guenther"]
[Black "Alinasab, Mobina"]
[WhiteFideId "4604261"]
[BlackFideId "12528897"]
[WhiteElo "2212"]
[BlackElo "2031"]
[Result "0-1"]
[Round "03"]
[TimeControl "180+1"]
[Date "2022.06.22"]
[WhiteClock "0:00:15"]
[BlackClock "0:00:21"]

1. e4 {[%clk 0:03:00]}  c5 {[%clk 0:02:58]} 2. Nf3 {[%clk 0:03:01]}  e6 {[%clk 0:02:56]} 3. d4 {[%clk 0:03:01]}  cxd4 {[%clk 0:02:57]} 4. Nxd4 {[%clk 0:03:02]}  Nf6 {[%clk 0:02:57]} 5. Nc3 {[%clk 0:03:02]}  Nc6 {[%clk 0:02:55]} 6. Ndb5 {[%clk 0:03:02]}  Bb4 {[%clk 0:02:54]} 7. a3 {[%clk 0:03:00]}  Bxc3+ {[%clk 0:02:54]} 8. Nxc3 {[%clk 0:03:01]}  d5 {[%clk 0:02:54]} 9. exd5 {[%clk 0:03:02]}  exd5 {[%clk 0:02:55]} 10. Bd3 {[%clk 0:03:02]}  O-O {[%clk 0:02:51]} 11. O-O {[%clk 0:03:02]}  d4 {[%clk 0:02:52]} 12. Ne2 {[%clk 0:03:02]}  Bg4 {[%clk 0:02:52]} 13. f3 {[%clk 0:03:02]}  Bh5 {[%clk 0:02:51]} 14. Bf4 {[%clk 0:03:00]}  Bg6 {[%clk 0:02:52]} 15. Bxg6 {[%clk 0:02:58]}  hxg6 {[%clk 0:02:53]} 16. Qd3 {[%clk 0:02:57]}  Nd5 {[%clk 0:02:51]} 17. Bd2 {[%clk 0:02:53]}  Qb6 {[%clk 0:02:50]} 18. b4 {[%clk 0:02:51]}  a6 {[%clk 0:02:47]} 19. Rad1 {[%clk 0:02:48]}  Rad8 {[%clk 0:02:47]} 20. Kh1 {[%clk 0:02:45]}  Rfe8 {[%clk 0:02:43]} 21. c4 {[%clk 0:02:40]}  dxc3 {[%clk 0:02:35]} 22. Nxc3 {[%clk 0:02:30]}  Ne3 {[%clk 0:02:06]} 23. Bxe3 {[%clk 0:02:25]}  Rxd3 {[%clk 0:02:05]} 24. Bxb6 {[%clk 0:02:25]}  Rxc3 {[%clk 0:02:05]} 25. Rd7 {[%clk 0:01:58]}  Re7 {[%clk 0:01:57]} 26. Rxe7 {[%clk 0:01:51]}  Nxe7 {[%clk 0:01:58]} 27. Rd1 {[%clk 0:01:30]}  Rxa3 {[%clk 0:01:55]} 28. h3 {[%clk 0:01:19]}  Nc6 {[%clk 0:01:47]} 29. Rd7 {[%clk 0:01:15]}  Nxb4 {[%clk 0:01:44]} 30. Rxb7 {[%clk 0:01:14]}  Nd3 {[%clk 0:01:38]} 31. Ra7 {[%clk 0:00:58]}  Ra1+ {[%clk 0:01:36]} 32. Kh2 {[%clk 0:00:56]}  Ra2 {[%clk 0:01:36]} 33. Kh1 {[%clk 0:00:47]}  Nf4 {[%clk 0:01:27]} 34. Ra8+ {[%clk 0:00:45]}  Kh7 {[%clk 0:01:20]} 35. Ra7 {[%clk 0:00:46]}  f6 {[%clk 0:01:04]} 36. Bc5 {[%clk 0:00:41]}  a5 {[%clk 0:00:59]} 37. Bd6 {[%clk 0:00:34]}  Ne6 {[%clk 0:00:53]} 38. Re7 {[%clk 0:00:34]}  Nd4 {[%clk 0:00:49]} 39. Ra7 {[%clk 0:00:30]}  Nb5 {[%clk 0:00:43]} 40. Ra6 {[%clk 0:00:30]}  a4 {[%clk 0:00:43]} 41. Bb4 {[%clk 0:00:27]}  Ra1+ {[%clk 0:00:35]} 42. Kh2 {[%clk 0:00:26]}  a3 {[%clk 0:00:34]} 43. Ra5 {[%clk 0:00:20]}  a2 {[%clk 0:00:33]} 44. Kg3 {[%clk 0:00:20]}  Nd4 {[%clk 0:00:28]} 45. Kh4 {[%clk 0:00:18]}  Nc6 {[%clk 0:00:22]} 46. Bc3 {[%clk 0:00:14]}  Nxa5 {[%clk 0:00:17]} 47. Bxa1 {[%clk 0:00:13]}  Nb3 {[%clk 0:00:18]} 48. Bb2 {[%clk 0:00:12]}  a1=Q {[%clk 0:00:19]} 49. Bxa1 {[%clk 0:00:12]}  Nxa1 {[%clk 0:00:20]} 50. g4 {[%clk 0:00:13]}  Nc2 {[%clk 0:00:19]} 51. f4 {[%clk 0:00:13]}  Nd4 {[%clk 0:00:19]} 52. g5 {[%clk 0:00:13]}  f5 {[%clk 0:00:19]} 53. Kg3 {[%clk 0:00:13]}  Kg8 {[%clk 0:00:19]} 54. Kf2 {[%clk 0:00:13]}  Kf7 {[%clk 0:00:20]} 55. Ke3 {[%clk 0:00:14]}  Nb5 {[%clk 0:00:20]} 56. Kd3 {[%clk 0:00:14]}  Ke6 {[%clk 0:00:20]} 57. Kc4 {[%clk 0:00:14]}  Nc7 {[%clk 0:00:20]} 58. Kd4 {[%clk 0:00:15]}  Nd5 {[%clk 0:00:21]} 59. h4 {[%clk 0:00:15]}  Nxf4 {[%clk 0:00:21]} 0-1


[Site "https://www.chess.com"]

[Event "Titled Tuesday Blitz June 21 Early 2022"]
[White "Yaksin, Oleg"]
[Black "Manukian, Artak"]
[WhiteFideId "24105880"]
[BlackFideId "13301373"]
[WhiteElo "2256"]
[BlackElo "2462"]
[Result "0-1"]
[Round "03"]
[TimeControl "180+1"]
[Date "2022.06.22"]
[WhiteClock "0:00:01"]
[BlackClock "0:00:11"]

1. d4 {[%clk 0:03:00]}  Nf6 {[%clk 0:02:59]} 2. c4 {[%clk 0:03:01]}  g6 {[%clk 0:03:00]} 3. g3 {[%clk 0:03:02]}  Bg7 {[%clk 0:03:00]} 4. Bg2 {[%clk 0:03:02]}  c6 {[%clk 0:03:00]} 5. Nf3 {[%clk 0:02:57]}  d5 {[%clk 0:03:00]} 6. cxd5 {[%clk 0:02:55]}  cxd5 {[%clk 0:03:00]} 7. Ne5 {[%clk 0:02:56]}  O-O {[%clk 0:03:00]} 8. O-O {[%clk 0:02:56]}  Nfd7 {[%clk 0:02:57]} 9. f4 {[%clk 0:02:52]}  Nxe5 {[%clk 0:02:54]} 10. dxe5 {[%clk 0:02:47]}  e6 {[%clk 0:02:53]} 11. Be3 {[%clk 0:02:46]}  Nc6 {[%clk 0:02:49]} 12. Bc5 {[%clk 0:02:37]}  Re8 {[%clk 0:02:48]} 13. Nc3 {[%clk 0:02:35]}  b6 {[%clk 0:02:46]} 14. Bf2 {[%clk 0:02:15]}  Ba6 {[%clk 0:02:43]} 15. Re1 {[%clk 0:02:15]}  Na5 {[%clk 0:02:39]} 16. Qa4 {[%clk 0:02:09]}  Bb7 {[%clk 0:02:25]} 17. Rad1 {[%clk 0:02:08]}  Qc8 {[%clk 0:02:10]} 18. e4 {[%clk 0:02:06]}  dxe4 {[%clk 0:02:06]} 19. Nxe4 {[%clk 0:02:04]}  Bxe4 {[%clk 0:01:52]} 20. Bxe4 {[%clk 0:01:54]}  Rb8 {[%clk 0:01:52]} 21. Rc1 {[%clk 0:01:53]}  Qd8 {[%clk 0:01:45]} 22. Red1 {[%clk 0:01:52]}  Qe7 {[%clk 0:01:45]} 23. Rd7 {[%clk 0:01:52]}  Qf8 {[%clk 0:01:42]} 24. Rcc7 {[%clk 0:01:43]}  Rec8 {[%clk 0:01:28]} 25. b4 {[%clk 0:01:30]}  Rxc7 {[%clk 0:01:25]} 26. Rxc7 {[%clk 0:01:28]}  Nc4 {[%clk 0:01:05]} 27. Qxa7 {[%clk 0:01:18]}  Rc8 {[%clk 0:00:49]} 28. a4 {[%clk 0:00:54]}  Rxc7 {[%clk 0:00:45]} 29. Qxc7 {[%clk 0:00:53]}  Qxb4 {[%clk 0:00:46]} 30. Bd3 {[%clk 0:00:43]}  Nb2 {[%clk 0:00:39]} 31. Bb5 {[%clk 0:00:23]}  Nxa4 {[%clk 0:00:34]} 32. Be8 {[%clk 0:00:22]}  Qb1+ {[%clk 0:00:32]} 33. Kg2 {[%clk 0:00:22]}  Qe4+ {[%clk 0:00:32]} 34. Kf1 {[%clk 0:00:17]}  Qd3+ {[%clk 0:00:28]} 35. Kg2 {[%clk 0:00:16]}  Qe4+ {[%clk 0:00:28]} 36. Kh3 {[%clk 0:00:17]}  Qf5+ {[%clk 0:00:28]} 37. Kh4 {[%clk 0:00:17]}  h5 {[%clk 0:00:20]} 38. h3 {[%clk 0:00:05]}  Nc5 {[%clk 0:00:17]} 39. g4 {[%clk 0:00:03]}  hxg4 {[%clk 0:00:17]} 40. hxg4 {[%clk 0:00:04]}  Qxf4 {[%clk 0:00:17]} 41. Bxc5 {[%clk 0:00:04]}  bxc5 {[%clk 0:00:11]} 42. Kh3 {[%clk 0:00:02]}  Bxe5 {[%clk 0:00:11]} 43. Qxc5 {[%clk 0:00:01]}  Qg3# {[%clk 0:00:11]} 0-1


[Site "https://www.chess.com"]

[Event "Titled Tuesday Blitz June 21 Early 2022"]
[White "Yen, William"]
[Black "Ianov, Viktor"]
[WhiteFideId "30932025"]
[BlackFideId "14102730"]
[WhiteElo "1905"]
[BlackElo "2152"]
[Result "1-0"]
[Round "03"]
[TimeControl "180+1"]
[Date "2022.06.22"]
[WhiteClock "0:00:51"]
[BlackClock "0:01:21"]

1. e4 {[%clk 0:03:00]}  d6 {[%clk 0:02:57]} 2. d4 {[%clk 0:02:58]}  Nf6 {[%clk 0:02:56]} 3. f3 {[%clk 0:02:58]}  Nbd7 {[%clk 0:02:55]} 4. c4 {[%clk 0:02:58]}  e5 {[%clk 0:02:55]} 5. d5 {[%clk 0:02:54]}  Be7 {[%clk 0:02:54]} 6. Be3 {[%clk 0:02:52]}  a5 {[%clk 0:02:53]} 7. Nc3 {[%clk 0:02:48]}  Nc5 {[%clk 0:02:53]} 8. Bxc5 {[%clk 0:02:43]}  dxc5 {[%clk 0:02:52]} 9. Bd3 {[%clk 0:02:42]}  O-O {[%clk 0:02:51]} 10. Nge2 {[%clk 0:02:40]}  Ne8 {[%clk 0:02:51]} 11. O-O {[%clk 0:02:38]}  Nd6 {[%clk 0:02:51]} 12. a4 {[%clk 0:02:33]}  Bg5 {[%clk 0:02:49]} 13. f4 {[%clk 0:02:30]}  exf4 {[%clk 0:02:48]} 14. Nxf4 {[%clk 0:02:31]}  Qe7 {[%clk 0:02:44]} 15. Qe2 {[%clk 0:02:25]}  Qe5 {[%clk 0:02:43]} 16. g3 {[%clk 0:02:23]}  Bd7 {[%clk 0:02:39]} 17. Rae1 {[%clk 0:02:18]}  Rae8 {[%clk 0:02:39]} 18. Kh1 {[%clk 0:02:15]}  g6 {[%clk 0:02:37]} 19. Nb5 {[%clk 0:02:11]}  Bxb5 {[%clk 0:02:27]} 20. axb5 {[%clk 0:02:12]}  b6 {[%clk 0:02:25]} 21. b3 {[%clk 0:02:09]}  Re7 {[%clk 0:02:21]} 22. Bc2 {[%clk 0:02:08]}  Rfe8 {[%clk 0:02:19]} 23. Qf3 {[%clk 0:02:05]}  Qb2 {[%clk 0:02:13]} 24. Rf2 {[%clk 0:02:01]}  Nf5 {[%clk 0:02:08]} 25. Rb1 {[%clk 0:01:18]}  Qa2 {[%clk 0:01:47]} 26. exf5 {[%clk 0:01:11]}  Re3 {[%clk 0:01:45]} 27. Qg4 {[%clk 0:01:09]}  Bxf4 {[%clk 0:01:42]} 28. Qxf4 {[%clk 0:01:05]}  Re1+ {[%clk 0:01:29]} 29. Rxe1 {[%clk 0:01:02]}  Rxe1+ {[%clk 0:01:29]} 30. Kg2 {[%clk 0:01:02]}  Qa1 {[%clk 0:01:23]} 31. fxg6 {[%clk 0:00:58]}  Rg1+ {[%clk 0:01:22]} 32. Kh3 {[%clk 0:00:58]}  Qg7 {[%clk 0:01:21]} 33. Qxf7+ {[%clk 0:00:51]} 1-0


[Site "https://www.chess.com"]

[Event "Titled Tuesday Blitz June 21 Early 2022"]
[White "Yuan, Qingyu"]
[Black "Curtis, John"]
[WhiteFideId "8609772"]
[BlackFideId "3200256"]
[WhiteElo "2359"]
[BlackElo "2203"]
[Result "1/2-1/2"]
[Round "03"]
[TimeControl "180+1"]
[Date "2022.06.22"]
[WhiteClock "0:00:02"]
[BlackClock "0:01:23"]

1. e4 {[%clk 0:03:00]}  c5 {[%clk 0:02:59]} 2. Nf3 {[%clk 0:02:55]}  d6 {[%clk 0:02:59]} 3. Bb5+ {[%clk 0:02:53]}  Bd7 {[%clk 0:02:58]} 4. c4 {[%clk 0:02:53]}  a6 {[%clk 0:02:56]} 5. Bxd7+ {[%clk 0:02:53]}  Qxd7 {[%clk 0:02:56]} 6. Nc3 {[%clk 0:02:50]}  Nc6 {[%clk 0:02:56]} 7. O-O {[%clk 0:02:44]}  Rb8 {[%clk 0:02:56]} 8. d4 {[%clk 0:02:36]}  cxd4 {[%clk 0:02:54]} 9. Nxd4 {[%clk 0:02:28]}  e6 {[%clk 0:02:49]} 10. b3 {[%clk 0:02:22]}  Nf6 {[%clk 0:02:49]} 11. Be3 {[%clk 0:02:13]}  Be7 {[%clk 0:02:46]} 12. Qd3 {[%clk 0:02:10]}  Ng4 {[%clk 0:02:41]} 13. Rad1 {[%clk 0:01:59]}  Nxe3 {[%clk 0:02:40]} 14. Qxe3 {[%clk 0:01:59]}  Nxd4 {[%clk 0:02:41]} 15. Rxd4 {[%clk 0:01:56]}  Qc6 {[%clk 0:02:35]} 16. e5 {[%clk 0:01:40]}  dxe5 {[%clk 0:02:30]} 17. Qxe5 {[%clk 0:01:39]}  O-O {[%clk 0:02:30]} 18. Rg4 {[%clk 0:01:33]}  g6 {[%clk 0:02:27]} 19. Rd1 {[%clk 0:01:24]}  b5 {[%clk 0:02:17]} 20. h4 {[%clk 0:01:03]}  Rbd8 {[%clk 0:02:11]} 21. Rxd8 {[%clk 0:00:49]}  Rxd8 {[%clk 0:02:10]} 22. h5 {[%clk 0:00:36]}  Qd6 {[%clk 0:01:51]} 23. Qxd6 {[%clk 0:00:29]}  Rxd6 {[%clk 0:01:51]} 24. hxg6 {[%clk 0:00:24]}  hxg6 {[%clk 0:01:51]} 25. cxb5 {[%clk 0:00:25]}  axb5 {[%clk 0:01:51]} 26. Nxb5 {[%clk 0:00:25]}  Rd1+ {[%clk 0:01:48]} 27. Kh2 {[%clk 0:00:25]}  Rd2 {[%clk 0:01:48]} 28. a4 {[%clk 0:00:25]}  Rxf2 {[%clk 0:01:47]} 29. a5 {[%clk 0:00:22]}  Rb2 {[%clk 0:01:46]} 30. a6 {[%clk 0:00:14]}  Bc5 {[%clk 0:01:46]} 31. Rc4 {[%clk 0:00:12]}  Bf2 {[%clk 0:01:43]} 32. a7 {[%clk 0:00:06]}  Bxa7 {[%clk 0:01:42]} 33. Nxa7 {[%clk 0:00:07]}  Rxb3 {[%clk 0:01:42]} 34. Nc6 {[%clk 0:00:07]}  Kg7 {[%clk 0:01:41]} 35. Ne5 {[%clk 0:00:07]}  Rb7 {[%clk 0:01:40]} 36. Kg3 {[%clk 0:00:07]}  Kf6 {[%clk 0:01:38]} 37. Nf3 {[%clk 0:00:07]}  g5 {[%clk 0:01:37]} 38. Kg4 {[%clk 0:00:06]}  Rb5 {[%clk 0:01:37]} 39. Rc7 {[%clk 0:00:06]}  Kg6 {[%clk 0:01:35]} 40. Rc6 {[%clk 0:00:06]}  f5+ {[%clk 0:01:35]} 41. Kg3 {[%clk 0:00:06]}  Kf6 {[%clk 0:01:35]} 42. Rxe6+ {[%clk 0:00:06]}  Kxe6 {[%clk 0:01:33]} 43. Nd4+ {[%clk 0:00:07]}  Ke5 {[%clk 0:01:34]} 44. Nxb5 {[%clk 0:00:07]}  Ke4 {[%clk 0:01:34]} 45. Nd6+ {[%clk 0:00:08]}  Ke5 {[%clk 0:01:33]} 46. Nf7+ {[%clk 0:00:08]}  Kf6 {[%clk 0:01:34]} 47. Nd6 {[%clk 0:00:09]}  Ke5 {[%clk 0:01:34]} 48. Nc4+ {[%clk 0:00:09]}  Kd4 {[%clk 0:01:34]} 49. Nd2 {[%clk 0:00:09]}  Ke3 {[%clk 0:01:33]} 50. Nf3 {[%clk 0:00:10]}  g4 {[%clk 0:01:30]} 51. Nh4 {[%clk 0:00:10]}  Ke4 {[%clk 0:01:29]} 52. Ng6 {[%clk 0:00:10]}  Ke3 {[%clk 0:01:28]} 53. Nf4 {[%clk 0:00:09]}  Ke4 {[%clk 0:01:28]} 54. Nh5 {[%clk 0:00:09]}  Ke3 {[%clk 0:01:28]} 55. Kh4 {[%clk 0:00:09]}  Kf2 {[%clk 0:01:27]} 56. g3 {[%clk 0:00:10]}  Kf3 {[%clk 0:01:27]} 57. Kg5 {[%clk 0:00:10]}  Ke4 {[%clk 0:01:25]} 58. Nf4 {[%clk 0:00:05]}  Kf3 {[%clk 0:01:24]} 59. Kh4 {[%clk 0:00:05]}  Ke4 {[%clk 0:01:24]} 60. Ne6 {[%clk 0:00:05]}  Kf3 {[%clk 0:01:23]} 61. Nf4 {[%clk 0:00:05]}  Ke4 {[%clk 0:01:23]} 62. Kg5 {[%clk 0:00:04]}  Kf3 {[%clk 0:01:23]} 63. Nh5 {[%clk 0:00:05]}  Ke4 {[%clk 0:01:23]} 64. Kh4 {[%clk 0:00:02]}  Kf3 {[%clk 0:01:23]} 65. Nf4 {[%clk 0:00:02]} 1/2-1/2


[Site "https://www.chess.com"]